fUST/lending_fUST_20251218
["ID","MTS","AMOUNT","RATE_DAILY","PERIOD"]
[398935093,1766007041168,-500.0,0.00034999,30]
[398935094,1766007041177,-500.0,0.00034999,30]
[398935096,1766007041186,-500.0,0.00034999,30]
[398935098,1766007041195,-500.0,0.00034999,30]
[398935100,1766007041204,-500.0,0.00034999,30]
[398935102,1766007041213,-500.0,0.00034999,30]
[398935104,1766007041222,-500.0,0.00034999,30]
[398935106,1766007041231,-500.0,0.00034999,30]
[398935108,1766007041240,-500.0,0.00034999,30]
[398935110,1766007041250,-500.0,0.00034999,30]
[398935112,1766007041258,-500.0,0.00034999,30]
[398935114,1766007041267,-500.0,0.00034999,30]
[398935116,1766007041276,-500.0,0.00034999,30]
[398935118,1766007041284,-500.0,0.00034999,30]
[398935120,1766007041293,-500.0,0.00034999,30]
[398935122,1766007041303,-500.0,0.00034999,30]
[398935124,1766007041312,-500.0,0.00034999,30]
[398935126,1766007041321,-500.0,0.00034999,30]
[398935128,1766007041330,-281.11976742,0.00034999,30]
[398935130,1766007041338,-500.0,0.00034999,30]
[398935132,1766007041347,-500.0,0.00034999,30]
[398935134,1766007041356,-500.0,0.00034999,30]
[398935136,1766007041365,-500.0,0.00034999,30]
[398935138,1766007041374,-500.0,0.00034999,30]
[398935140,1766007041383,-500.0,0.00034999,30]
[398935142,1766007041392,-500.0,0.00034999,30]
[398935144,1766007041402,-500.0,0.00034999,30]
[398935146,1766007041414,-500.0,0.00034999,30]
[398935148,1766007041423,-500.0,0.00034999,30]
[398935150,1766007041432,-342.70010887,0.00034999,30]
[398935152,1766007041441,-2000.0,0.00034999,2]
[398935154,1766007041450,-2000.0,0.00034999,14]
[398935155,1766007041460,-2000.0,0.00034999,15]
[398935157,1766007041469,-2000.0,0.00034999,7]
[398935159,1766007041478,-2000.0,0.00034999,15]
[398935162,1766007041487,-2000.0,0.00034999,15]
[398935163,1766007041496,-8446.23,0.00035,2]
[398935165,1766007041506,-789.65,0.00035,7]
[398935167,1766007041515,-151.0,0.00035,31]
[398935169,1766007041525,-151.0,0.00035,31]
[398935171,1766007041535,-827.3128639,0.00035,2]
[398935173,1766007041544,-150.0,0.00035,2]
[398935175,1766007041554,-632.0,0.00035353,2]
[398935188,1766007041667,-2158.0,0.00035353,2]
[398935190,1766007041677,-415.0,0.00035353,2]
[398935192,1766007041686,-200.0,0.000354,120]
[398935194,1766007041700,-462.24,0.000354,30]
[398935196,1766007041709,-200.0,0.0003544,41]
[398935198,1766007041718,-152.0,0.000356,120]
[398935200,1766007041728,-151.02,0.00035693,60]
[398935202,1766007041737,-151.02,0.00035793,60]
[398935204,1766007041745,-151.02,0.00035893,60]
[398935206,1766007041754,-151.02,0.00035993,60]
[398935208,1766007041764,-150.0,0.00036,2]
[398935210,1766007041773,-151.02,0.00036093,60]
[398935212,1766007041782,-159.822095,0.000361,31]
[398935214,1766007041791,-159.822095,0.000361,31]
[398935216,1766007041800,-159.822095,0.000361,31]
[398935218,1766007041809,-151.0,0.000361,31]
[398935220,1766007041819,-167.805189,0.000361,31]
[398935222,1766007041829,-167.805189,0.000361,31]
[398935224,1766007041838,-167.805189,0.000361,31]
[398935226,1766007041848,-167.805189,0.000361,31]
[398935228,1766007041857,-151.02,0.00036193,60]
[398935230,1766007041866,-151.0,0.000362,13]
[398935231,1766007041875,-204.70280775,0.0003621,2]
[398935234,1766007041884,-266.24499033,0.0003624,2]
[398935235,1766007041893,-151.02,0.00036293,60]
[398935237,1766007041902,-152.0,0.000363,120]
[398935239,1766007041911,-151.02,0.00036393,60]
[398935241,1766007041920,-314.87381841,0.000364,16]
[398935243,1766007041929,-151.02,0.00036493,60]
[398935245,1766007041938,-151.02,0.00036593,60]
[398935247,1766007041947,-151.02,0.00036693,60]
[398935249,1766007041956,-151.02,0.00036793,60]
[398935251,1766007041965,-3783.93078712,0.0003686,2]
[398935253,1766007041974,-151.0,0.0003686,31]
[398935255,1766007041983,-151.0,0.0003686,31]
[398935257,1766007041992,-151.0,0.0003686,31]
[398935259,1766007042001,-151.0,0.0003686,31]
[398935261,1766007042011,-151.0,0.0003686,31]
[398935262,1766007042021,-151.0,0.0003686,31]
[398935263,1766007042030,-151.0,0.0003686,31]
[398935264,1766007042040,-151.0,0.0003686,31]
[398935265,1766007042049,-151.0,0.0003686,31]
[398935266,1766007042058,-151.0,0.0003686,31]
[398935267,1766007042067,-151.0,0.0003686,31]
[398935268,1766007042077,-151.0,0.0003686,31]
[398935269,1766007042087,-151.0,0.0003686,31]
[398935270,1766007042096,-151.0,0.0003686,31]
[398935271,1766007042105,-151.0,0.0003686,31]
[398935272,1766007042115,-151.0,0.0003686,31]
[398935273,1766007042124,-151.0,0.0003686,31]
[398935274,1766007042133,-151.0,0.0003686,31]
[398935275,1766007042142,-169.036138,0.0003686,31]
[398935276,1766007042152,-169.036138,0.0003686,31]
[398935277,1766007042162,-169.036138,0.0003686,31]
[398935278,1766007042171,-169.036138,0.0003686,31]
[398935279,1766007042180,-151.02,0.00036893,60]
[398935280,1766007042190,-152.0,0.000369,120]
[398935281,1766007042199,-4808.24,0.000369,14]
[398935282,1766007042208,-789.65,0.000369,7]
[398935283,1766007042218,-199.4756495,0.000369,2]
[398935284,1766007042227,-151.02,0.00036993,60]
[398935285,1766007042237,-2040.90233491,0.00037,2]
[398935286,1766007042247,-156.39613505,0.00037,120]
[398935287,1766007042257,-8446.23,0.00037,2]
[398935288,1766007042267,-151.0,0.00037,31]
[398935289,1766007042277,-151.0,0.00037,31]
[398935290,1766007042286,-166.274112,0.00037,31]
[398935291,1766007042295,-151.0,0.00037,31]
[398935292,1766007042305,-151.0,0.00037,31]
[398935293,1766007042314,-151.0,0.00037,31]
[398935295,1766007042327,-151.0,0.00037,31]
[398935296,1766007042336,-151.0,0.00037,31]
[398935298,1766007042345,-151.0,0.00037,31]
[398935300,1766007042354,-254.252914,0.00037,31]
[398935302,1766007042363,-151.0,0.00037,31]
[398935304,1766007042372,-462.24,0.00037,30]
[398935306,1766007042382,-151.0,0.00037,31]
[398935308,1766007042391,-151.0,0.00037,31]
[398935310,1766007042400,-151.02,0.00037093,60]
[398935311,1766007042414,-1257.96564219,0.00037135,2]
[398935313,1766007042423,-151.02,0.00037193,60]
[398935315,1766007042432,-199.4756495,0.00037275,2]
[398935317,1766007042441,-151.02,0.00037293,60]
[398935319,1766007042450,-151.02,0.00037393,60]
[398935322,1766007042466,-200.0,0.000374,120]
[398935324,1766007042484,-151.0,0.000374,15]
[398935326,1766007042494,-864.0,0.00037401,30]
[398935329,1766007042503,-151.02,0.00037493,60]
[398935332,1766007042512,-152.0,0.000375,120]
[398935334,1766007042521,-151.02,0.00037593,60]
[398935336,1766007042530,-151.0,0.000376,10]
[398935338,1766007042539,-199.4756495,0.0003765,2]
[398935340,1766007042548,-151.02,0.00037693,60]
[398935342,1766007042557,-151.02,0.00037793,60]
[398935344,1766007042567,-1020.35878263,0.000378,2]
[398935346,1766007042576,-151.0,0.000378,18]
[398935348,1766007042586,-200.0,0.0003785,47]
[398935350,1766007042595,-151.02,0.00037893,60]
[398935352,1766007042605,-151.02,0.00037993,60]
[398935354,1766007042614,-2442.51655294,0.00038,5]
[398935356,1766007042623,-151.0,0.00038,19]
[398935358,1766007042632,-199.4756495,0.00038025,2]
[398935360,1766007042641,-151.02,0.00038093,60]
[398935362,1766007042650,-152.0,0.000381,120]
[398935364,1766007042659,-4808.24,0.000381,14]
[398935366,1766007042669,-151.0,0.000381,20]
[398935368,1766007042678,-159.822095,0.000381,31]
[398935370,1766007042688,-159.822095,0.000381,31]
[398935372,1766007042700,-159.822095,0.000381,31]
[398935374,1766007042709,-151.0,0.000381,31]
[398935376,1766007042719,-167.805189,0.000381,31]
[398935378,1766007042728,-151.0,0.000381,31]
[398935380,1766007042738,-167.805189,0.000381,31]
[398935382,1766007042747,-167.805189,0.000381,31]
[398935384,1766007042757,-167.805189,0.000381,31]
[398935386,1766007042766,-151.02,0.00038193,60]
[398935388,1766007042776,-151.0,0.000382,15]
[398935390,1766007042785,-151.02,0.00038293,60]
[398935392,1766007042793,-415.0,0.00038353,2]
[398935394,1766007042802,-8431.91413208,0.00038391,2]
[398935396,1766007042811,-151.07312411,0.00038393,120]
[398935398,1766007042821,-151.0,0.000384,13]
[398935400,1766007042831,-199.4756495,0.000384,2]
[398935402,1766007042840,-217.73662258,0.0003848,3]
[398935404,1766007042850,-159.822095,0.00038489,120]
[398935406,1766007042859,-159.822095,0.00038489,120]
[398935408,1766007042868,-159.822095,0.00038489,120]
[398935410,1766007042878,-159.822095,0.00038489,120]
[398935412,1766007042887,-151.0,0.00038489,120]
[398935414,1766007042896,-159.822095,0.00038489,120]
[398935416,1766007042905,-151.0,0.00038489,120]
[398935418,1766007042914,-159.822095,0.00038489,120]
[398935420,1766007042923,-151.0,0.00038489,120]
[398935422,1766007042934,-159.822095,0.00038489,120]
[398935424,1766007042943,-160.099036,0.00038489,120]
[398935426,1766007042952,-159.822095,0.00038489,120]
[398935428,1766007042961,-159.822095,0.00038489,120]
[398935430,1766007042973,-159.822095,0.00038489,120]
[398935431,1766007042982,-159.822095,0.00038489,120]
[398935434,1766007042992,-159.8220994,0.00038489,120]
[398935435,1766007043002,-151.0,0.00038489,120]
[398935437,1766007043011,-151.000001,0.00038489,120]
[398935439,1766007043020,-167.805189,0.00038489,120]
[398935441,1766007043028,-167.805189,0.00038489,120]
[398935443,1766007043038,-151.0,0.00038489,120]
[398935445,1766007043052,-167.805189,0.00038489,120]
[398935447,1766007043065,-151.0,0.00038489,120]
[398935449,1766007043075,-151.0,0.00038489,120]
[398935451,1766007043084,-167.805189,0.00038489,120]
[398935453,1766007043093,-167.805189,0.00038489,120]
[398935455,1766007043103,-167.805189,0.00038489,120]
[398935457,1766007043113,-167.805189,0.00038489,120]
[398935459,1766007043122,-167.805189,0.00038489,120]
[398935461,1766007043131,-167.805189,0.00038489,120]
[398935463,1766007043140,-167.805189,0.00038489,120]
[398935465,1766007043149,-167.805189,0.00038489,120]
[398935467,1766007043158,-151.0,0.00038489,120]
[398935469,1766007043167,-167.805191,0.00038489,120]
[398935471,1766007043176,-42.07793875,0.00038489,120]
[398935481,1766007043255,-1002.172147,0.00035,17]
[398935483,1766007043264,-108.92206125,0.00038489,120]
[398935485,1766007043273,-151.0,0.00038489,120]
[398935487,1766007043282,-151.0,0.00038489,120]
[398935489,1766007043291,-151.0,0.00038489,120]
[398935491,1766007043300,-151.0,0.00038489,120]
[398935493,1766007043309,-151.0,0.00038489,120]
[398935495,1766007043318,-151.0,0.00038489,120]
[398935497,1766007043327,-151.0,0.00038489,120]
[398935498,1766007043336,-151.0,0.00038489,120]
[398935500,1766007043345,-151.0,0.00038489,120]
[398935502,1766007043354,-151.0,0.00038489,120]
[398935504,1766007043363,-151.0,0.00038489,120]
[398935506,1766007043372,-151.0,0.00038489,120]
[398935508,1766007043382,-151.0,0.00038489,120]
[398935510,1766007043391,-209.157151,0.00038489,120]
[398935512,1766007043400,-151.0,0.00038489,120]
[398935514,1766007043408,-45.41744562,0.00038489,120]
[398935516,1766007043421,-105.58255438,0.00038489,120]
[398935518,1766007043431,-151.0,0.00038489,120]
[398935520,1766007043441,-151.0,0.00038489,120]
[398935522,1766007043449,-151.0,0.00038489,120]
[398935524,1766007043460,-297.189209,0.00038489,120]
[398935526,1766007043470,-151.0,0.00038489,120]
[398935528,1766007043479,-151.0,0.00038489,120]
[398935530,1766007043487,-151.0,0.00038489,120]
[398935532,1766007043496,-151.0,0.00038489,120]
[398935534,1766007043505,-151.0,0.00038489,120]
[398935536,1766007043514,-242.026702,0.00038489,120]
[398935538,1766007043523,-151.0,0.00038489,120]
[398935540,1766007043531,-151.0,0.00038489,120]
[398935542,1766007043540,-151.0,0.00038489,120]
[398935544,1766007043549,-151.0,0.00038489,120]
[398935546,1766007043558,-151.0,0.00038489,120]
[398935548,1766007043567,-151.0,0.00038489,120]
[398935550,1766007043575,-151.0,0.00038489,120]
[398935552,1766007043585,-134.09865506,0.00038489,120]
[398935845,1766007046312,-16.90134494,0.00038489,120]
[398935847,1766007046322,-151.0,0.00038489,120]
[398935849,1766007046330,-151.0,0.00038489,120]
[398935851,1766007046339,-169.036138,0.00038489,120]
[398935863,1766007046434,-169.036138,0.00038489,120]
[398935865,1766007046445,-169.036138,0.00038489,120]
[398935867,1766007046453,-169.036138,0.00038489,120]
[398935869,1766007046463,-169.036138,0.00038489,120]
[398935871,1766007046472,-169.036138,0.00038489,120]
[398935873,1766007046481,-169.036138,0.00038489,120]
[398935875,1766007046491,-169.036138,0.00038489,120]
[398935877,1766007046500,-151.0,0.00038489,120]
[398935879,1766007046510,-151.0,0.00038489,120]
[398935881,1766007046519,-151.0,0.00038489,120]
[398935883,1766007046528,-151.0,0.00038489,120]
[398935885,1766007046537,-151.0,0.00038489,120]
[398935887,1766007046546,-267.651898,0.00038489,120]
[398935889,1766007046554,-151.0,0.00038489,120]
[398935891,1766007046563,-151.0,0.00038489,120]
[398935893,1766007046572,-151.0,0.00038489,120]
[398935895,1766007046581,-151.0,0.00038489,120]
[398935897,1766007046591,-151.0,0.00038489,120]
[398935899,1766007046600,-151.0,0.00038489,120]
[398935901,1766007046610,-151.0,0.00038489,120]
[398935903,1766007046619,-151.0,0.00038489,120]
[398935905,1766007046629,-205.240503,0.00038489,120]
[398935907,1766007046638,-151.0,0.00038489,120]
[398935909,1766007046647,-151.0,0.00038489,120]
[398935911,1766007046656,-151.0,0.00038489,120]
[398935913,1766007046665,-151.0,0.00038489,120]
[398935914,1766007046673,-151.0,0.00038489,120]
[398935916,1766007046682,-151.0,0.00038489,120]
[398935918,1766007046691,-151.0,0.00038489,120]
[398935920,1766007046704,-151.0,0.00038489,7]
[398935922,1766007046713,-151.0,0.00038489,7]
[398935924,1766007046722,-271.039402,0.00038489,120]
[398935926,1766007046731,-271.039402,0.00038489,120]
[398935928,1766007046741,-271.039402,0.00038489,120]
[398935930,1766007046750,-271.039402,0.00038489,120]
[398935932,1766007046760,-338.51027,0.00038489,120]
[398935934,1766007046771,-338.51027,0.00038489,120]
[398935936,1766007046780,-338.51027,0.00038489,120]
[398935938,1766007046789,-338.51027,0.00038489,120]
[398935940,1766007046798,-338.51027,0.00038489,120]
[398935942,1766007046807,-338.51027,0.00038489,120]
[398935944,1766007046816,-338.51027,0.00038489,120]
[398935946,1766007046825,-338.51027,0.00038489,120]
[398935948,1766007046834,-151.0,0.00038489,120]
[398935949,1766007046843,-151.0,0.00038489,120]
[398935951,1766007046851,-151.0,0.00038489,120]
[398935954,1766007046862,-151.0,0.00038489,120]
[398935956,1766007046872,-151.0,0.00038489,120]
[398935957,1766007046881,-151.0,0.00038489,120]
[398935959,1766007046890,-151.0,0.00038489,120]
[398935961,1766007046899,-151.0,0.00038489,120]
[398935963,1766007046908,-151.0,0.00038489,120]
[398935965,1766007046917,-151.0,0.00038489,120]
[398935967,1766007046926,-151.0,0.00038489,120]
[398935969,1766007046935,-151.0,0.00038489,120]
[398935971,1766007046943,-206.114331,0.00038489,120]
[398935973,1766007046952,-175.391744,0.00038489,120]
[398935975,1766007046961,-175.391744,0.00038489,120]
[398935977,1766007046971,-175.391744,0.00038489,120]
[398935979,1766007046979,-175.391744,0.00038489,120]
[398935981,1766007046988,-175.391744,0.00038489,120]
[398935983,1766007046997,-175.391744,0.00038489,120]
[398935985,1766007047006,-175.391744,0.00038489,120]
[398935987,1766007047015,-175.391744,0.00038489,120]
[398935988,1766007047025,-167.159729,0.00038489,120]
[398935991,1766007047034,-167.159729,0.00038489,120]
[398935992,1766007047043,-167.159729,0.00038489,120]
[398935994,1766007047053,-167.159729,0.00038489,120]
[398935996,1766007047062,-167.159729,0.00038489,120]
[398935998,1766007047072,-167.159729,0.00038489,120]
[398936000,1766007047081,-167.159729,0.00038489,120]
[398936002,1766007047090,-167.159729,0.00038489,120]
[398936004,1766007047099,-151.0,0.00038489,60]
[398936006,1766007047109,-151.0,0.00038489,60]
[398936008,1766007047119,-151.0,0.00038489,120]
[398936010,1766007047128,-151.0,0.00038489,120]
[398936012,1766007047137,-188.305186,0.00038489,120]
[398936014,1766007047146,-228.415067,0.00038489,120]
[398936016,1766007047155,-151.0,0.00038489,120]
[398936018,1766007047164,-151.0,0.00038489,120]
[398936020,1766007047174,-151.0,0.00038489,120]
[398936022,1766007047183,-151.0,0.00038489,120]
[398936024,1766007047193,-151.0,0.00038489,120]
[398936026,1766007047203,-151.0,0.00038489,120]
[398936028,1766007047213,-151.0,0.00038489,120]
[398936030,1766007047223,-201.36546,0.00038489,120]
[398936031,1766007047232,-210.101635,0.00038489,120]
[398936033,1766007047241,-171.937418,0.00038489,120]
[398936035,1766007047250,-171.937418,0.00038489,120]
[398936037,1766007047259,-171.937418,0.00038489,120]
[398936039,1766007047268,-171.937418,0.00038489,120]
[398936041,1766007047277,-691.877478,0.00038489,120]
[398936043,1766007047287,-691.877478,0.00038489,120]
[398936045,1766007047296,-691.877478,0.00038489,120]
[398936047,1766007047306,-691.877478,0.00038489,120]
[398936049,1766007047316,-386.647976,0.00038489,120]
[398936051,1766007047325,-386.647976,0.00038489,120]
[398936053,1766007047334,-215.544007,0.00038489,120]
[398936055,1766007047343,-386.647976,0.00038489,120]
[398936057,1766007047352,-151.0,0.00038489,120]
[398936059,1766007047361,-386.647976,0.00038489,120]
[398936061,1766007047371,-215.544007,0.00038489,120]
[398936063,1766007047380,-215.544007,0.00038489,120]
[398936065,1766007047389,-151.0,0.00038489,120]
[398936066,1766007047398,-215.544007,0.00038489,120]
[398936068,1766007047407,-151.0,0.00038489,120]
[398936070,1766007047416,-151.0,0.00038489,120]
[398936072,1766007047427,-151.0,0.00038489,120]
[398936074,1766007047437,-151.0,0.00038489,120]
[398936076,1766007047446,-151.0,0.00038489,120]
[398936078,1766007047455,-151.0,0.00038489,120]
[398936080,1766007047464,-151.0,0.00038489,120]
[398936082,1766007047473,-151.0,0.00038489,120]
[398936083,1766007047482,-151.0,0.00038489,120]
[398936085,1766007047491,-151.0,0.00038489,120]
[398936087,1766007047500,-151.0,0.00038489,120]
[398936089,1766007047509,-151.0,0.00038489,120]
[398936091,1766007047518,-113.01731862,0.00038489,120]
[398936102,1766007047608,-37.98268138,0.00038489,120]
[398936103,1766007047618,-253.418132,0.00038489,120]
[398936105,1766007047627,-151.0,0.00038489,120]
[398936107,1766007047636,-151.0,0.00038489,120]
[398936109,1766007047645,-151.0,0.00038489,120]
[398936111,1766007047654,-151.0,0.00038489,120]
[398936113,1766007047663,-151.0,0.00038489,120]
[398936115,1766007047673,-151.0,0.00038489,120]
[398936117,1766007047682,-151.0,0.00038489,120]
[398936119,1766007047691,-151.0,0.00038489,120]
[398936121,1766007047704,-151.0,0.00038489,120]
[398936123,1766007047713,-151.0,0.00038489,120]
[398936125,1766007047723,-151.0,0.00038489,120]
[398936127,1766007047732,-151.0,0.00038489,120]
[398936129,1766007047741,-151.0,0.00038489,120]
[398936131,1766007047750,-17.83598138,0.00038489,120]
[398936669,1766008232159,-201.06475275,0.00019,2]
[398936670,1766008232170,-418.78436829,0.00019,2]
[398936671,1766008232183,-284.21563171,0.00019,2]
[398936672,1766008232193,-201.06475275,0.00021399,17]
[398936673,1766008232204,-201.06475275,0.00023799,32]
[398936674,1766008232214,-265.6380343,0.00025376,2]
[398936675,1766008232225,-201.06475275,0.00026198,48]
[398936676,1766008232234,-184.3,0.00026855,2]
[398936677,1766008232244,-201.06475275,0.00028597,63]
[398936678,1766008232253,-184.3,0.00029868,3]
[398936679,1766008232262,-201.06475275,0.00030996,79]
[398936680,1766008232272,-184.3,0.00032881,5]
[398936681,1766008232282,-201.06475275,0.00033396,94]
[398936682,1766008232293,-1000.0,0.00034233,30]
[398936683,1766008232302,-180.185891,0.00035242,60]
[398936684,1766008232311,-335.11822053,0.00035259,3]
[398936685,1766008232323,-864.88177947,0.00035259,3]
[398936686,1766008232332,-200.0,0.0003544,41]
[398936687,1766008232341,-201.06475275,0.00035795,110]
[398936688,1766008232351,-184.3,0.00035895,6]
[398936689,1766008232360,-300.0,0.00037521,3]
[398936690,1766008232370,-300.0,0.00037522,3]
[398936691,1766008232379,-300.0,0.00037522,3]
[398936692,1766008232390,-300.0,0.00037522,2]
[398936693,1766008232399,-173.0,0.00037523,3]
[398936694,1766008232409,-500.0,0.00037585,15]
[398936695,1766008232419,-395.46441428,0.00037585,15]
[398936696,1766008232429,-500.0,0.00037585,15]
[398936697,1766008232438,-500.0,0.00037585,15]
[398936698,1766008232448,-500.0,0.00037585,15]
[398936699,1766008232457,-500.0,0.00037585,15]
[398936700,1766008232468,-316.63056527,0.00037585,15]
[398936732,1766008238057,-183.36943473,0.00037585,15]
[398936734,1766008238068,-500.0,0.00037585,15]
[398936736,1766008238082,-500.0,0.00037585,15]
[398936738,1766008238094,-500.0,0.00037585,15]
[398936741,1766008238104,-500.0,0.00037585,15]
[398936743,1766008238115,-500.0,0.00037585,15]
[398936745,1766008238127,-500.0,0.00037585,15]
[398936747,1766008238138,-500.0,0.00037585,15]
[398936750,1766008238151,-500.0,0.00037585,15]
[398936752,1766008238163,-500.0,0.00037585,15]
[398936755,1766008238176,-500.0,0.00037585,15]
[398936757,1766008238189,-500.0,0.00037585,15]
[398936759,1766008238200,-496.66133372,0.00037585,15]
[398936761,1766008238211,-500.0,0.00037585,15]
[398936764,1766008238223,-500.0,0.00037585,15]
[398936766,1766008238235,-500.0,0.00037585,15]
[398936768,1766008238246,-500.0,0.00037585,15]
[398936770,1766008238257,-500.0,0.00037585,15]
[398936773,1766008238269,-500.0,0.00037585,15]
[398936775,1766008238280,-382.99911064,0.00037585,15]
[398936777,1766008238295,-634.23121255,0.00037585,15]
[398936780,1766008238307,-500.0,0.00037585,15]
[398936782,1766008238317,-500.0,0.00037585,15]
[398936784,1766008238327,-500.0,0.00037585,15]
[398936786,1766008238337,-500.0,0.00037585,15]
[398936788,1766008238348,-500.0,0.00037585,15]
[398936790,1766008238359,-500.0,0.00037585,15]
[398936793,1766008238372,-156.54629153,0.00037585,15]
[398936795,1766008238383,-500.0,0.00037585,15]
[398936797,1766008238396,-500.0,0.00037585,15]
[398936800,1766008238408,-506.77651421,0.00037585,15]
[398936802,1766008238419,-500.0,0.00037585,15]
[398936804,1766008238432,-500.0,0.00037585,15]
[398936806,1766008238444,-500.0,0.00037585,15]
[398936809,1766008238457,-500.0,0.00037585,15]
[398936811,1766008238469,-500.0,0.00037585,15]
[398936813,1766008238481,-500.0,0.00037585,15]
[398936816,1766008238491,-500.0,0.00037585,15]
[398936818,1766008238501,-500.0,0.00037585,15]
[398936820,1766008238511,-500.0,0.00037585,15]
[398936822,1766008238520,-500.0,0.00037585,15]
[398936824,1766008238530,-500.0,0.00037585,15]
[398936826,1766008238542,-500.0,0.00037585,15]
[398936829,1766008238553,-500.0,0.00037585,15]
[398936831,1766008238565,-500.0,0.00037585,15]
[398936833,1766008238577,-500.0,0.00037585,15]
[398936835,1766008238587,-500.0,0.00037585,15]
[398936837,1766008238597,-500.0,0.00037586,15]
[398936840,1766008238608,-200.0,0.0003785,47]
[398936842,1766008238619,-500.0,0.0003786,15]
[398936844,1766008238630,-176.45458983,0.00038,6]
[398936846,1766008238642,-1458.0,0.00038,120]
[398936848,1766008238653,-600.0,0.00038272,30]
[398936851,1766008238665,-253.386,0.00038298,51]
[398936853,1766008238676,-2000.0,0.00038399,2]
[398936855,1766008238687,-2000.0,0.00038399,13]
[398936857,1766008238697,-7588.7227188,0.00038403,2]
[398936859,1766008238707,-375.4026437,0.00038449,30]
[398936862,1766008238717,-375.4026437,0.00038449,30]
[398936864,1766008238727,-375.4026437,0.00038449,30]
[398936866,1766008238737,-2000.0,0.00038479,3]
[398936868,1766008238748,-224.40056054,0.00038481,3]
[398936870,1766008238759,-2000.0,0.00038488,7]
[398936873,1766008238769,-2000.0,0.00038488,15]
[398936875,1766008238780,-2000.0,0.00038488,15]
[398936877,1766008238792,-152.0,0.00038489,14]
[398936879,1766008238802,-152.0,0.00038489,14]
[398936881,1766008238813,-152.0,0.00038489,14]
[398936884,1766008238824,-152.0,0.00038489,14]
[398936886,1766008238834,-152.0,0.00038489,14]
[398936888,1766008238845,-152.0,0.00038489,14]
[398936890,1766008238855,-152.9635202,0.00038489,14]
[398936892,1766008238867,-224.40056054,0.0003849,3]
[398936894,1766008238878,-557.38361942,0.0003849,15]
[398936896,1766008238888,-151.0,0.00038491,120]
[398936898,1766008238902,-151.0,0.00038491,120]
[398936900,1766008238913,-151.0,0.00038491,120]
[398936902,1766008238924,-151.0,0.00038491,120]
[398936904,1766008238935,-151.0,0.00038491,120]
[398936906,1766008238945,-151.0,0.00038491,120]
[398936908,1766008238956,-151.0,0.00038491,120]
[398936910,1766008238967,-151.0,0.00038491,120]
[398936912,1766008238978,-151.0,0.00038491,120]
[398936915,1766008238989,-151.0,0.00038491,120]
[398936917,1766008239000,-151.0,0.00038491,120]
[398936919,1766008239011,-151.0,0.00038491,120]
[398936921,1766008239022,-151.0,0.00038491,120]
[398936923,1766008239033,-151.0,0.00038491,120]
[398936925,1766008239044,-292.700924,0.00038491,120]
[398936927,1766008239055,-1283.5369763,0.00038491,120]
[398936931,1766008239075,-322.46275452,0.00038491,120]